bitfinex/quotes_BTCUSD_20230111
["timestamp","ask_amount","ask_price","bid_price","bid_amount"]
[1673453792182,0.001,17346.0,17345.0,2.72990317]
[1673453792459,0.001,17346.0,17345.0,2.42990317]
[1673453792738,0.001,17346.0,17345.0,2.72990317]
[1673453792998,0.001,17346.0,17345.0,2.72975976]
[1673453793254,0.208399,17346.0,17345.0,2.15322476]
[1673453793555,0.208399,17346.0,17345.0,2.45322476]
[1673453793556,0.001,17346.0,17345.0,2.45322476]
[1673453795469,0.001,17346.0,17345.0,2.26110194]
[1673453795966,0.208399,17346.0,17345.0,2.53763694]
[1673453796244,0.208399,17346.0,17345.0,2.27852163]
[1673453796507,0.208399,17346.0,17345.0,1.97852163]
[1673453796772,0.208399,17346.0,17345.0,2.27852163]
[1673453797004,0.208399,17346.0,17345.0,1.97852163]
[1673453797534,0.208399,17346.0,17345.0,0.63149159]
[1673453797797,0.208399,17346.0,17345.0,0.80418778]
[1673453798834,0.208399,17346.0,17345.0,0.63149159]
[1673453799109,0.78374831,17346.0,17345.0,0.05495659]
[1673453802165,0.78374831,17346.0,17345.0,0.63149159]
[1673453802709,0.78374831,17346.0,17345.0,0.80418778]
[1673453802960,0.57634931,17346.0,17345.0,0.80418778]
[1673453803212,0.57634931,17346.0,17345.0,0.63149159]
[1673453803466,0.78374831,17346.0,17345.0,0.63149159]
[1673453803718,0.78374831,17346.0,17345.0,0.80418778]
[1673453805763,0.8563047,17346.0,17345.0,0.80418778]
[1673453806032,0.8563047,17346.0,17345.0,0.05495659]
[1673453806538,0.8563047,17346.0,17345.0,0.22765278]
[1673453806825,0.8563047,17346.0,17345.0,0.05495659]
[1673453807059,0.8563047,17346.0,17345.0,0.22751073]
[1673453807588,0.8563047,17346.0,17345.0,0.05481454]
[1673453807894,0.8563047,17346.0,17345.0,0.22751073]
[1673453808638,1.1563047,17346.0,17345.0,0.05481454]
[1673453815130,1.64725016,17346.0,17345.0,0.05481454]
[1673453817944,1.1563047,17346.0,17345.0,0.05481454]
[1673453818477,1.64725016,17346.0,17345.0,0.05481454]
[1673453819443,1.1563047,17346.0,17345.0,0.05481454]
[1673453820407,1.64725016,17346.0,17345.0,0.05481454]
[1673453822194,1.81864193,17346.0,17345.0,0.05481454]
[1673453822464,1.64725016,17346.0,17345.0,0.05481454]
[1673453822692,1.1563047,17346.0,17345.0,0.05481454]
[1673453823448,1.3225047,17346.0,17345.0,0.05481454]
[1673453826234,0.8563047,17346.0,17345.0,0.05481454]
[1673453828001,0.6489057,17346.0,17345.0,0.05481454]
[1673453828499,0.6489057,17346.0,17345.0,0.22751073]
[1673453830260,0.6489057,17346.0,17345.0,1.51325514]
[1673453830508,0.64882745,17346.0,17345.0,1.21325514]
[1673453830764,0.64868679,17346.0,17345.0,0.95413983]
[1673453831027,0.85608579,17346.0,17345.0,0.95413983]
[1673453834066,0.85608579,17346.0,17345.0,0.78144364]
[1673453834321,0.85608579,17346.0,17345.0,0.95413983]
[1673453835093,0.85608579,17346.0,17345.0,0.22751073]
[1673453835352,0.85608579,17346.0,17345.0,0.05481454]
[1673453836109,1.34703125,17346.0,17345.0,0.05481454]
[1673453836354,1.64703125,17346.0,17345.0,0.05481454]
[1673453836605,1.81842302,17346.0,17345.0,0.05481454]
[1673453837616,1.64703125,17346.0,17345.0,0.05481454]
[1673453837878,1.15608579,17346.0,17345.0,0.05481454]
[1673453838427,1.81842302,17346.0,17345.0,0.05481454]
[1673453840197,1.81942302,17346.0,17345.0,0.05481454]
[1673453840444,1.15708579,17346.0,17345.0,0.05481454]
[1673453842244,1.15608579,17346.0,17345.0,0.05481454]
[1673453846501,1.15608579,17346.0,17345.0,0.05470893]
[1673453848552,1.15708579,17346.0,17345.0,0.22740512]
[1673453849548,1.15708579,17346.0,17345.0,0.22726446]
[1673453850074,1.15708579,17346.0,17345.0,0.05456827]
[1673453850596,1.15608579,17346.0,17345.0,0.22726446]
[1673453850851,1.15608579,17346.0,17345.0,0.05456827]
[1673453852373,1.15105456,17346.0,17345.0,0.05456827]
[1673453854165,1.14098795,17346.0,17345.0,0.05456827]
[1673453854669,1.14198795,17346.0,17345.0,0.05456827]
[1673453854929,1.14184867,17346.0,17345.0,0.05456827]
[1673453856723,1.14084867,17346.0,17345.0,0.05456827]
[1673453858847,1.14184867,17346.0,17345.0,0.05456827]
[1673453859305,0.84184867,17346.0,17345.0,0.05456827]
[1673453859566,0.84184867,17346.0,17345.0,0.05442899]
[1673453860048,0.84184867,17346.0,17345.0,0.22712518]
[1673453860834,0.84084867,17346.0,17345.0,0.22712518]
[1673453862590,0.84084867,17346.0,17345.0,0.48431406]
[1673453863087,0.84084867,17346.0,17345.0,0.22519875]
[1673453863338,0.84084867,17346.0,17345.0,0.48431406]
[1673453863590,0.84084867,17346.0,17345.0,0.22519875]
[1673453863855,0.84084867,17346.0,17345.0,0.22420875]
[1673453865903,0.84071078,17346.0,17345.0,0.22420875]
[1673453869797,0.84071078,17346.0,17345.0,0.22430265]
[1673453870811,0.84071078,17346.0,17345.0,0.22420875]
[1673453871098,0.84071078,17346.0,17345.0,0.22407086]
[1673453871352,0.84071078,17346.0,17345.0,0.22416476]
[1673453871609,0.84071078,17346.0,17345.0,0.22407086]
[1673453872114,0.84071078,17346.0,17345.0,0.05137467]
[1673453872867,0.84071078,17346.0,17345.0,0.05146857]
[1673453873120,0.84071078,17346.0,17345.0,0.05137467]
[1673453874689,1.33165624,17346.0,17345.0,0.05137467]
[1673453874952,1.6691115,17346.0,17345.0,0.05137467]
[1673453875210,2.22719915,17346.0,17345.0,0.05137467]
[1673453875495,2.22619915,17346.0,17345.0,0.05137467]
[1673453875761,1.9691115,17346.0,17345.0,0.05137467]
[1673453875988,2.22619915,17346.0,17345.0,0.05137467]
[1673453877816,1.9691115,17346.0,17345.0,0.05137467]
[1673453878036,1.47816604,17346.0,17345.0,0.05137467]
[1673453878322,1.46297813,17346.0,17345.0,0.05137467]
[1673453878574,1.29158636,17346.0,17345.0,0.05137467]
[1673453880871,1.46297813,17346.0,17345.0,0.05137467]
[1673453881134,1.29158636,17346.0,17345.0,0.05316368]
[1673453881415,1.46297813,17346.0,17345.0,0.05137467]
[1673453881923,1.29158636,17346.0,17345.0,0.05137467]
[1673453882396,1.29158636,17346.0,17345.0,0.05123816]
[1673453882954,0.82538636,17346.0,17345.0,0.05123816]
[1673453883260,0.07255639,17346.0,17345.0,0.86023109]
[1673453883489,0.07355639,17346.0,17345.0,1.1193464]
[1673453883722,0.07355639,17346.0,17345.0,0.86023109]
[1673453883984,0.07355639,17346.0,17345.0,2.17516572]
[1673453884250,0.07355639,17346.0,17345.0,3.83994341]
[1673453884547,0.07355639,17346.0,17345.0,4.03469741]
[1673453884773,0.07355639,17346.0,17345.0,3.68921626]
[1673453885282,0.07355639,17346.0,17345.0,4.03466532]
[1673453885533,0.07255639,17346.0,17345.0,4.03466532]
[1673453885783,0.07255639,17346.0,17345.0,3.67371132]
[1673453888139,0.07242126,17346.0,17345.0,3.83911132]
[1673453889682,0.07242126,17346.0,17345.0,3.83821132]
[1673453889949,0.07242126,17346.0,17345.0,3.50085009]
[1673453890453,0.07242126,17346.0,17345.0,2.75151311]
[1673453892599,0.07242126,17346.0,17345.0,2.01325198]
[1673453894319,0.07242126,17346.0,17345.0,2.01311685]
[1673453897106,0.07242126,17346.0,17345.0,2.31311685]
[1673453897415,0.07242126,17346.0,17345.0,2.3132955]
[1673453899686,0.07242126,17346.0,17345.0,2.57227231]
[1673453899940,0.07242126,17346.0,17345.0,2.3132955]
[1673453900700,0.07228752,17346.0,17345.0,2.3132955]
[1673453901490,0.07228752,17346.0,17345.0,2.01311685]
[1673453903526,0.67647354,17346.0,17345.0,0.80028511]
[1673453904004,0.67647354,17346.0,17345.0,0.05110303]
[1673453904005,0.88387254,17346.0,17345.0,0.05110303]
[1673453904522,0.67647354,17346.0,17345.0,0.05110303]
[1673453905031,0.67647354,17346.0,17345.0,0.05128168]
[1673453905313,0.67647354,17346.0,17345.0,0.05110303]
[1673453905565,0.88387254,17346.0,17345.0,0.05110303]
[1673453908445,0.27968652,17346.0,17345.0,1.35013796]
[1673453909687,0.27968652,17346.0,17345.0,1.35003766]
[1673453912783,0.27968652,17346.0,17345.0,1.92657266]
[1673453913795,0.07228752,17346.0,17345.0,2.39921974]
[1673453914901,0.07218821,17346.0,17345.0,2.39921974]
[1673453916223,0.07218821,17346.0,17345.0,2.65819655]
[1673453916474,0.07218821,17346.0,17345.0,2.83454601]
[1673453918287,0.07218821,17346.0,17345.0,2.65819655]
[1673453918806,0.07218821,17346.0,17345.0,2.09921974]
[1673453919344,0.07218821,17346.0,17345.0,2.39921974]
[1673453920116,0.07218821,17346.0,17345.0,2.09921974]
[1673453920925,0.07218821,17346.0,17345.0,2.65819655]
[1673453921440,0.07218821,17346.0,17345.0,2.09921974]
[1673453921688,0.07218821,17346.0,17345.0,2.35819655]
[1673453922507,0.07218821,17346.0,17345.0,2.53491403]
[1673453922767,0.07218821,17346.0,17345.0,2.83491403]
[1673453923590,0.07218821,17346.0,17345.0,2.53491403]
[1673453923852,0.07218821,17346.0,17345.0,2.83491403]
[1673453924105,0.07218821,17346.0,17345.0,2.35819655]
[1673453924375,0.07218821,17346.0,17345.0,2.09921974]
[1673453924976,0.07218821,17346.0,17345.0,2.39921974]
[1673453925248,0.07218821,17346.0,17345.0,2.65819655]
[1673453925521,0.07218821,17346.0,17345.0,2.83496103]
[1673453926281,0.07218821,17346.0,17345.0,2.53496103]
[1673453927051,0.07218821,17346.0,17345.0,2.83496103]
[1673453928608,0.07218821,17346.0,17345.0,3.00759094]
[1673453928866,0.07218821,17346.0,17345.0,2.57184965]
[1673453933569,0.07218821,17346.0,17345.0,2.21945059]
[1673453933818,0.07218821,17346.0,17345.0,2.82842868]
[1673453934058,0.07218821,17346.0,17345.0,2.83692868]
[1673453938861,0.07218821,17346.0,17345.0,3.18251005]
[1673453940154,0.07218821,17346.0,17345.0,3.00961974]
[1673453943236,0.07218821,17346.0,17345.0,3.4812114]
[1673453943507,0.07218821,17346.0,17345.0,3.6759654]
[1673453943748,0.07218821,17346.0,17345.0,3.24388397]
[1673453944288,0.0627146,17346.0,17345.0,3.00308505]
[1673453944532,0.0627146,17346.0,17345.0,4.16614164]
[1673453945087,0.0627146,17346.0,17345.0,4.87459797]
[1673453945292,0.0627146,17346.0,17345.0,3.64173767]
[1673453945540,0.0637146,17346.0,17345.0,3.51537826]
[1673453946048,0.0637146,17346.0,17345.0,2.87945566]
[1673453947567,0.0637146,17346.0,17345.0,3.73237993]
[1673453947806,0.0637146,17346.0,17345.0,2.87945566]
[1673453948569,0.0637146,17346.0,17345.0,3.73249798]
[1673453949073,0.0637146,17346.0,17345.0,4.21292803]
[1673453949343,0.0637146,17346.0,17345.0,3.73249798]
[1673453949601,0.0637146,17346.0,17345.0,3.56799798]
[1673453949863,0.0637146,17346.0,17345.0,3.73279798]
[1673453950148,0.0637146,17346.0,17345.0,3.73299798]
[1673453950387,0.0637146,17346.0,17345.0,3.56799798]
[1673453950651,0.0637146,17346.0,17345.0,3.73419798]
[1673453950922,0.0637146,17346.0,17345.0,3.56799798]
[1673453951182,0.0637146,17346.0,17345.0,3.73269798]
[1673453951461,0.0637146,17346.0,17345.0,3.56799798]
[1673453951931,0.0637146,17346.0,17345.0,3.0499647]
[1673453952186,0.0637146,17346.0,17345.0,2.71495566]
[1673453952436,0.0637146,17346.0,17345.0,3.23298894]
[1673453952723,0.0637146,17346.0,17345.0,3.58311035]
[1673453953512,0.0637146,17346.0,17345.0,3.74931035]
[1673453954504,0.0637146,17346.0,17345.0,3.58311035]
[1673453954754,0.0637146,17346.0,17345.0,3.23047707]
[1673453954994,0.0637146,17346.0,17345.0,3.06507707]
[1673453955241,0.0637146,17346.0,17345.0,2.71495566]
[1673453955556,0.0637146,17346.0,17345.0,3.22974614]
[1673453955780,0.0637146,17346.0,17345.0,2.71495566]
[1673453956035,0.0637146,17346.0,17345.0,2.88115566]
[1673453956286,0.0637146,17346.0,17345.0,2.71495566]
[1673453957042,0.0637146,17346.0,17345.0,2.88115566]
[1673453957071,0.0637146,17346.0,17345.0,3.74934254]
[1673453957285,0.0637146,17346.0,17345.0,3.23130926]
[1673453958039,0.0637146,17346.0,17345.0,3.74934232]
[1673453958290,0.0637146,17346.0,17345.0,3.23130904]
[1673453958825,0.0637146,17346.0,17345.0,3.74934232]
[1673453959078,0.0637146,17346.0,17345.0,3.23130904]
[1673453959324,0.0637146,17346.0,17345.0,3.74934232]
[1673453959836,0.0637146,17346.0,17345.0,3.58314232]
[1673453962194,0.0627146,17346.0,17345.0,3.44414232]
[1673453962513,0.0627146,17346.0,17345.0,3.58314232]
[1673453963020,3.53782735,17350.0,17345.0,3.58314232]
[1673453963219,3.53782735,17350.0,17348.0,0.43125589]
[1673453963445,2.22842735,17350.0,17349.0,1.152804]
[1673453963698,2.22842735,17350.0,17349.0,3.452804]
[1673453964689,1.59546505,17350.0,17349.0,3.452804]
[1673453964938,1.59546505,17350.0,17349.0,3.593804]
[1673453965689,1.59546505,17350.0,17349.0,4.170206]
[1673453966437,1.59546505,17350.0,17349.0,4.34270836]
[1673453966732,1.59546505,17350.0,17349.0,4.34276836]
[1673453966972,2.11433041,17350.0,17349.0,4.170266]
[1673453967234,2.11433041,17350.0,17349.0,3.870266]
[1673453967984,2.32166558,17350.0,17349.0,3.870266]
[1673453968226,2.11426658,17350.0,17349.0,3.870266]
[1673453969199,2.11426658,17350.0,17349.0,3.878766]
[1673453970441,2.44666658,17350.0,17349.0,3.878766]
[1673453970699,2.44666658,17350.0,17349.0,4.178766]
[1673453971212,2.44666658,17350.0,17349.0,3.878766]
[1673453972948,2.44666658,17350.0,17349.0,3.878706]
[1673453973697,2.44666658,17350.0,17349.0,3.302304]
[1673453974731,2.65406558,17350.0,17349.0,3.302304]
[1673453975222,2.44666658,17350.0,17349.0,3.302304]
[1673453975474,2.65406558,17350.0,17349.0,3.302304]
[1673453975714,2.44666658,17350.0,17349.0,3.302304]
[1673453976218,2.65406558,17350.0,17349.0,3.302304]
[1673453976471,2.44666658,17350.0,17349.0,3.302304]
[1673453977225,2.65406558,17350.0,17349.0,2.141]
[1673453977496,3.31121104,17350.0,17349.0,2.141]
[1673453977749,3.48260281,17350.0,17349.0,2.141]
[1673453978313,3.74152957,17350.0,17349.0,2.141]
[1673453978785,3.48360281,17350.0,17349.0,2.141]
[1673453980047,3.79903221,17350.0,17349.0,2.141]
[1673453980303,4.38961616,17350.0,17349.0,2.141]
[1673453980612,4.38961616,17350.0,17349.0,0.141]
[1673453980821,5.88540824,17350.0,17349.0,0.141]
[1673453981074,4.96598416,17350.0,17349.0,0.141]
[1673453982382,5.69879415,17350.0,17349.0,0.141]
[1673453982887,7.51044785,17350.0,17349.0,0.141]
[1673453983902,8.08681585,17350.0,17349.0,0.141]
[1673453984151,7.44551332,17350.0,17349.0,0.141]
[1673453984413,8.09240588,17350.0,17349.0,0.141]
[1673453984691,5.95555971,17350.0,17349.0,0.141]
[1673453985436,4.38049171,17350.0,17349.0,0.141]
[1673453985764,3.54620532,17350.0,17349.0,0.1411]
[1673453986472,3.54720532,17350.0,17349.0,0.1411]
[1673453987289,3.80512371,17350.0,17349.0,0.1411]
[1673453987535,4.38149171,17350.0,17349.0,0.1411]
[1673453988556,5.29965435,17350.0,17349.0,0.1411]
[1673453988811,6.28072435,17350.0,17349.0,0.1411]
[1673453989328,4.95682404,17350.0,17349.0,0.1411]
[1673453989585,3.14694258,17350.0,17349.0,0.1411]
[1673453989887,2.71711235,17350.0,17349.0,0.1411]
[1673453993512,2.50971335,17350.0,17349.0,0.1411]
[1673453993764,1.20091235,17350.0,17349.0,0.1411]
[1673453994008,0.99351335,17350.0,17349.0,0.1411]
[1673453994262,1.20091235,17350.0,17349.0,0.1411]
[1673453995297,0.07920122,17350.0,17349.0,0.4411]
[1673453995558,0.07920122,17350.0,17349.0,2.3172744]
[1673453995827,0.07920122,17350.0,17349.0,2.48977676]
[1673453996584,0.07920122,17350.0,17349.0,3.42713276]
[1673453996837,0.07920122,17350.0,17349.0,3.06617876]
[1673453997328,0.07920122,17350.0,17349.0,2.8936764]
[1673453997828,0.07920122,17350.0,17349.0,3.06617876]
[1673453999137,0.07910087,17350.0,17349.0,3.06617876]
[1673454002458,0.07910087,17350.0,17349.0,3.12243963]
[1673454002700,0.07910087,17350.0,17349.0,3.55497809]
[1673454002957,0.07910087,17350.0,17349.0,3.71977809]
[1673454003213,0.07910087,17350.0,17349.0,3.5472807]
[1673454004504,0.07910087,17350.0,17349.0,2.94015178]
[1673454004773,0.07910087,17350.0,17349.0,3.38242583]
[1673454005043,0.07910087,17350.0,17349.0,3.19890531]
[1673454005325,0.07910087,17350.0,17349.0,2.94015178]
[1673454006099,1.0505959,17350.0,17349.0,1.293904]
[1673454006435,1.02031701,17350.0,17349.0,0.717502]
[1673454007128,1.67646247,17350.0,17349.0,0.1411]
[1673454007375,1.97646247,17350.0,17349.0,0.1411]
[1673454007909,1.31931701,17350.0,17349.0,0.1411]
[1673454008166,1.11191801,17350.0,17349.0,0.1411]
[1673454008431,1.31931701,17350.0,17349.0,0.1411]
[1673454008680,1.01931701,17350.0,17349.0,0.1411]
[1673454010527,1.01931701,17350.0,17349.0,0.717502]
[1673454011088,0.85411701,17350.0,17349.0,0.717502]
[1673454011617,0.85411701,17350.0,17349.0,1.017502]
[1673454011843,0.85411701,17350.0,17349.0,0.717502]
[1673454012098,0.64671801,17350.0,17349.0,1.017502]
[1673454012601,0.85411701,17350.0,17349.0,1.017502]
[1673454012856,0.64671801,17350.0,17349.0,1.017502]
[1673454013083,0.64671801,17350.0,17349.0,1.602404]
[1673454015118,0.85411701,17350.0,17349.0,1.602404]
[1673454015859,0.85411701,17350.0,17349.0,1.302404]
[1673454017971,0.28649987,17350.0,17349.0,1.602404]
[1673454018215,0.07910087,17350.0,17349.0,1.602404]
[1673454021084,0.07910087,17350.0,17349.0,2.178806]
[1673454021327,0.07910087,17350.0,17349.0,2.35131332]
[1673454021600,0.07910087,17350.0,17349.0,2.178806]
[1673454021911,0.07910087,17350.0,17349.0,2.35131332]
[1673454022378,0.07898843,17350.0,17349.0,2.35131332]
[1673454026987,0.28638743,17350.0,17349.0,2.35131332]
[1673454027238,0.07898843,17350.0,17349.0,2.61006685]
[1673454027750,0.07898843,17350.0,17349.0,2.80889743]
[1673454028003,0.07898843,17350.0,17349.0,2.35131332]
[1673454028255,0.07898843,17350.0,17349.0,2.80896036]
[1673454029006,0.07898843,17350.0,17349.0,2.35131332]
[1673454029261,0.28638743,17350.0,17349.0,1.47491132]
[1673454029521,0.28638743,17350.0,17349.0,1.302404]
[1673454029743,0.28638743,17350.0,17349.0,1.77491132]
[1673454030027,0.28638743,17350.0,17349.0,1.302404]
[1673454030318,0.28638743,17350.0,17349.0,1.602404]
[1673454030565,0.28638743,17350.0,17349.0,1.77491132]
[1673454032055,0.28638743,17350.0,17349.0,1.47491132]
[1673454033323,0.28638743,17350.0,17349.0,1.77491132]
[1673454033595,0.28638743,17350.0,17349.0,2.80886342]
[1673454033840,0.07898843,17350.0,17349.0,2.80886342]
[1673454035172,0.28638743,17350.0,17349.0,2.80886342]
[1673454035393,0.07898843,17350.0,17349.0,2.23246142]
[1673454035646,0.28638743,17350.0,17349.0,2.23246142]
[1673454036404,0.28638743,17350.0,17349.0,1.77491132]
[1673454036918,0.28638743,17350.0,17349.0,2.03366485]
[1673454037430,0.28638743,17350.0,17349.0,2.35131332]
[1673454037704,0.07898843,17350.0,17349.0,2.8093315]
[1673454038211,0.28638743,17350.0,17349.0,1.47491132]
[1673454038519,0.90635888,17350.0,17349.0,1.47491132]
[1673454040010,0.90635888,17350.0,17349.0,1.302404]
[1673454040519,0.90635888,17350.0,17349.0,1.47491132]
[1673454040771,0.69895988,17350.0,17349.0,1.302404]
[1673454041034,0.07898843,17350.0,17349.0,1.77491132]
[1673454041286,0.07898843,17350.0,17349.0,2.23268326]
[1673454045104,0.07898843,17350.0,17349.0,2.57768797]
[1673454045357,0.07898843,17350.0,17349.0,1.93268326]
[1673454045598,0.28638743,17350.0,17349.0,2.23268326]
[1673454046097,0.07898843,17350.0,17349.0,2.23268326]
[1673454046612,0.28638743,17350.0,17349.0,2.23268326]
[1673454047133,0.28638743,17350.0,17349.0,2.22268326]
[1673454047641,0.07898843,17350.0,17349.0,2.22268326]
[1673454047886,0.07898843,17350.0,17349.0,2.79908526]
[1673454048129,0.28638743,17350.0,17349.0,2.22268326]
[1673454048379,0.28638743,17350.0,17349.0,1.92268326]
[1673454048634,0.28638743,17350.0,17349.0,1.72366485]
[1673454048886,0.28638743,17350.0,17349.0,1.93633527]
[1673454049645,0.28638743,17350.0,17349.0,2.50893164]
[1673454049900,0.07898843,17350.0,17349.0,3.55783103]
[1673454050157,0.07898843,17350.0,17349.0,3.15393139]
[1673454050930,0.07898843,17350.0,17349.0,3.73033339]
[1673454052753,0.07898843,17350.0,17349.0,3.15393139]
[1673454053251,0.07898843,17350.0,17349.0,3.73033339]
[1673454054016,0.07898843,17350.0,17349.0,3.15393139]
[1673454055814,0.07898843,17350.0,17349.0,3.73033339]
[1673454056077,0.97617888,17350.0,17349.0,1.72440235]
[1673454056351,0.97617888,17350.0,17349.0,0.88030392]
[1673454057342,0.97617888,17350.0,17349.0,0.77445455]
[1673454057853,0.76877988,17350.0,17349.0,0.77445455]
[1673454058388,0.76877988,17350.0,17349.0,1.65085655]
[1673454058874,0.76877988,17350.0,17349.0,1.82305934]
[1673454061415,0.76716888,17350.0,17349.0,1.82305934]
[1673454061918,0.97456788,17350.0,17349.0,1.82305934]
[1673454062165,0.76716888,17350.0,17349.0,1.82305934]
[1673454063588,0.76716888,17350.0,17349.0,2.39946134]
[1673454063807,0.07737743,17350.0,17349.0,2.39946134]
[1673454064711,0.07737743,17350.0,17349.0,2.2272497]
[1673454064950,0.07737743,17350.0,17349.0,1.9272497]
[1673454065453,0.07737743,17350.0,17349.0,2.2272497]
[1673454066968,0.07737743,17350.0,17349.0,1.0744457]
[1673454067218,0.28477643,17350.0,17349.0,1.9272497]
[1673454067473,0.07737743,17350.0,17349.0,1.9272497]
[1673454067716,0.07737743,17350.0,17349.0,2.2272497]
[1673454068059,0.07737743,17350.0,17349.0,2.39946134]
[1673454070777,0.07737743,17350.0,17349.0,3.73110699]
[1673454072271,0.07737743,17350.0,17349.0,3.55902111]
[1673454076764,0.07737743,17350.0,17349.0,2.98261911]
[1673454077015,0.07737743,17350.0,17349.0,3.73110699]
[1673454082702,0.07729739,17350.0,17349.0,3.73110699]
[1673454085281,0.07729739,17350.0,17349.0,3.38610228]
[1673454085860,0.07729739,17350.0,17349.0,3.38596953]
[1673454087846,0.07729739,17350.0,17349.0,2.95471364]
[1673454088094,0.07729739,17350.0,17349.0,3.38647176]
[1673454088346,0.07729739,17350.0,17349.0,2.95471364]
[1673454089110,0.02728468,17350.0,17349.0,4.41521952]
[1673454089367,0.02728468,17350.0,17349.0,4.90403947]
[1673454089626,0.02728468,17350.0,17349.0,5.23170007]
[1673454089887,0.0747259,17350.0,17349.0,5.07093947]
[1673454090144,0.0747259,17350.0,17349.0,5.5836497]
[1673454090639,0.0747259,17350.0,17349.0,5.07093947]
[1673454091153,0.0747259,17350.0,17349.0,5.68296964]
[1673454091412,0.0747259,17350.0,17349.0,5.51686964]
[1673454091662,0.0747259,17350.0,17349.0,4.90483947]
[1673454092910,0.0747259,17350.0,17349.0,5.54591757]
[1673454093673,0.0747259,17350.0,17349.0,4.90483947]
[1673454094454,0.0747259,17350.0,17349.0,5.438824]
[1673454094732,0.0747259,17350.0,17349.0,4.90483947]
[1673454094971,0.0747259,17350.0,17349.0,4.95140607]
[1673454096051,0.0747259,17350.0,17349.0,4.77397222]
[1673454096324,0.01984705,17350.0,17349.0,4.22953894]
[1673454096606,0.01984705,17350.0,17349.0,4.07291899]
[1673454096856,0.01971601,17350.0,17349.0,4.56173894]
[1673454097112,0.01971601,17350.0,17349.0,4.60830554]
[1673454097607,0.01971601,17350.0,17349.0,4.44220554]
[1673454097862,0.01971601,17350.0,17349.0,4.470562]
[1673454098115,0.01971601,17350.0,17349.0,4.95938195]
[1673454098889,0.01971601,17350.0,17349.0,3.26726341]
[1673454099142,0.01971601,17350.0,17349.0,3.68216764]
[1673454099653,0.01971601,17350.0,17349.0,3.68221221]
[1673454099908,0.01971601,17350.0,17349.0,3.33732872]
[1673454100184,0.01971601,17350.0,17349.0,3.6822624]
[1673454100445,0.01971601,17350.0,17349.0,3.33732872]
[1673454100708,0.01971601,17350.0,17349.0,3.63732872]
[1673454100965,0.01971601,17350.0,17349.0,3.99828272]
[1673454102299,0.01971601,17350.0,17349.0,3.83218272]
[1673454102759,0.01971601,17350.0,17349.0,3.81615327]
[1673454103279,0.01971601,17350.0,17349.0,3.81602223]
[1673454107887,0.01971601,17350.0,17349.0,3.47107521]
[1673454108636,0.01971601,17350.0,17349.0,3.83202921]
[1673454108902,0.01971601,17350.0,17349.0,3.47099489]
[1673454109185,0.01971601,17350.0,17349.0,3.81619054]
[1673454109442,0.01971601,17350.0,17349.0,3.38517123]
[1673454109699,0.01971601,17350.0,17349.0,3.64402554]
[1673454109954,0.01971601,17350.0,17349.0,3.64402595]
[1673454110235,0.72064532,17350.0,17349.0,1.53069996]
[1673454110471,1.74292456,17350.0,17349.0,0.139]
[1673454111241,1.74192456,17350.0,17348.0,0.17274231]
[1673454111501,1.36942556,17350.0,17349.0,0.14]
[1673454111772,1.74192456,17350.0,17348.0,0.17274231]
[1673454112026,0.4661,17349.0,17348.0,0.17274231]
[1673454112284,0.4661,17349.0,17348.0,0.00016]
[1673454112285,0.673499,17349.0,17348.0,0.00016]
[1673454113090,0.674499,17349.0,17348.0,0.13916]
[1673454113859,1.23079112,17349.0,17348.0,0.13916]
[1673454114183,1.71368486,17349.0,17348.0,0.13916]
[1673454114374,1.71368287,17349.0,17348.0,0.13916]
[1673454115207,1.23079112,17349.0,17348.0,0.13916]
[1673454116505,0.93092091,17349.0,17348.0,0.43916]
[1673454116820,0.93092091,17349.0,17348.0,0.13916]
[1673454118086,0.93102091,17349.0,17348.0,0.13916]
[1673454119896,0.93102091,17349.0,17348.0,0.43916]
[1673454120412,0.93102091,17349.0,17348.0,0.13916]
[1673454120905,0.93102091,17349.0,17348.0,0.138536]
[1673454122170,0.93102091,17349.0,17348.0,0.714971]
[1673454122422,0.93102091,17349.0,17348.0,1.014971]
[1673454124208,0.1672,17349.0,17348.0,1.01505252]
[1673454124543,0.001,17349.0,17348.0,3.50805204]
[1673454124726,0.001,17349.0,17348.0,3.50805063]
[1673454125235,0.001,17349.0,17348.0,3.6805864]
[1673454125773,0.001,17349.0,17348.0,4.0415404]
[1673454126005,0.001,17349.0,17348.0,3.6805864]
[1673454127550,0.001,17349.0,17348.0,3.68050488]
[1673454127804,0.001,17349.0,17348.0,3.50779541]
[1673454128317,0.001,17349.0,17348.0,3.18114043]
[1673454128595,0.001,17349.0,17348.0,3.50747907]
[1673454130949,0.001,17349.0,17348.0,2.92228571]
[1673454131491,0.56075671,17349.0,17348.0,2.34024961]
[1673454131766,1.21017993,17349.0,17348.0,1.46381461]
[1673454132024,0.93435571,17349.0,17348.0,1.291406]
[1673454132597,0.76815571,17349.0,17348.0,1.291406]
[1673454133113,0.76815571,17349.0,17348.0,1.591406]
[1673454133363,0.56075671,17349.0,17348.0,1.591406]
[1673454133881,0.76815571,17349.0,17348.0,1.291406]
[1673454134907,0.56075671,17349.0,17348.0,1.291406]
[1673454135431,0.56075671,17349.0,17348.0,1.591406]
[1673454135961,0.76815571,17349.0,17348.0,1.291406]
[1673454136232,0.76815571,17349.0,17348.0,1.46381461]
[1673454136746,0.76815571,17349.0,17348.0,1.291406]
[1673454137264,0.76815571,17349.0,17348.0,1.46389613]
[1673454137553,0.56075671,17349.0,17348.0,1.76389613]
[1673454138049,0.56075671,17349.0,17348.0,2.34703821]
[1673454141511,0.56075671,17349.0,17348.0,2.51974768]
[1673454144079,0.56075671,17349.0,17348.0,2.51966616]
[1673454145313,0.56069439,17349.0,17348.0,2.51966616]
[1673454148897,0.56069439,17349.0,17348.0,3.26834727]
[1673454149921,0.56069439,17349.0,17348.0,3.26821748]
[1673454151176,0.00093768,17349.0,17348.0,3.26821748]
[1673454152008,0.00093768,17349.0,17348.0,3.26813596]
[1673454153787,0.00093768,17349.0,17348.0,2.69170096]
[1673454155009,0.72751639,17349.0,17348.0,2.69170096]
[1673454155505,0.72751639,17349.0,17348.0,2.69185619]
[1673454156004,0.72751639,17349.0,17348.0,2.21985567]
[1673454156005,0.82751639,17349.0,17348.0,2.21985567]
[1673454159026,0.82751639,17349.0,17348.0,2.79629067]
[1673454159532,0.82751639,17349.0,17348.0,2.69629067]
[1673454160095,0.10080899,17349.0,17348.0,3.12730998]
[1673454160461,0.10080899,17349.0,17348.0,3.16813596]
[1673454161222,0.10080899,17349.0,17348.0,3.16800727]
[1673454165473,0.10080899,17349.0,17348.0,2.86800727]
[1673454165972,0.10068139,17349.0,17348.0,2.86800727]
[1673454166496,0.71007662,17349.0,17348.0,2.86800727]
[1673454166761,1.35782576,17349.0,17348.0,2.29157227]
[1673454167058,1.56522476,17349.0,17348.0,2.11976396]
[1673454167291,1.56522476,17349.0,17348.0,0.21110635]
[1673454167553,1.86522476,17349.0,17348.0,0.21110635]
[1673454168573,2.0371366,17349.0,17348.0,0.03827752]